Cogmind - Beta 11.1 @@@ ROGUE MODE // 2022.07.02 @ 09:13:10 Player: tkc Result: Destroyed by G-47 Trooper with Particle Gun Performance ------------- Evolutions (0) 0 Regions Visited (1) 200 Robots Destroyed (4) 20 Value Destroyed (88) 88 Prototype IDs (0) 0 Alien Tech Used (0) 0 Bonus (0) 0 TOTAL SCORE: 308 Bonus ------- None Cogmind --------- Core Integrity 0/250 Matter 295/300 Energy 146/250 System Corruption 0% Temperature Cool (9) Movement Walking (190) Ox1 Location -10/Materials Parts ------- > --- POWER (1) -------- Ion Engine > --- PROPULSION (2) --- Aluminum Leg > --- UTILITY (2) ------ Small Storage Unit Small Storage Unit > --- WEAPON (2) ------- EM Pulse Gun > --- INVENTORY (8) ---- Wheel Peak State ------------ > --- POWER ------------ Light Ion Engine > --- PROPULSION ------- Aluminum Leg Aluminum Leg > --- UTILITY ---------- Small Storage Unit Small Storage Unit > --- WEAPON ----------- Small Laser Light Assault Rifle > --- INVENTORY -------- Ion Engine Wheel [Rating: 7] Favorites ----------- Power Light Ion Engine Engine Light Ion Engine Propulsion Aluminum Leg Leg Aluminum Leg Wheel Wheel Utility Small Storage Unit Storage Small Storage Unit Weapon Small Laser Energy Gun Small Laser Ballistic Gun Light Assault Rifle Build | -11 -10 ------- Run | Scr Mat Slots Evolved . | . . Power . | . . Propulsion . | . . Utility . | . . Weapon . | . . Parts Attached 15 | 7 8 Power 4 | 1 3 Engine 4 | 1 3 Core . | . . Reactor . | . . Propulsion 5 | 2 3 Treads . | . . Leg 4 | 1 3 Wheel 1 | 1 . Hover . | . . Flight . | . . Utility 2 | 1 1 Device . | . . Storage 2 | 1 1 Processor . | . . Hackware . | . . Protection . | . . Artifact . | . . Weapon 4 | 3 1 Energy Gun 2 | 1 1 Energy Cannon . | . . Ballistic Gun 2 | 2 . Ballistic Cannon . | . . Launcher . | . . Special Weapon . | . . Impact Weapon . | . . Slashing Weapon . | . . Piercing Weapon . | . . Special Melee Weapon . | . . Unidentified Prototypes . | . . Parts Lost 8 | . 8 Power 3 | . 3 Propulsion 3 | . 3 Utility . | . . Weapon 2 | . 2 Highest Loss Streak 6 | . 6 To Critical Strikes . | . . Average Slot Usage (%) 87 | . 87 Engine 12 | . 12 Leg 27 | . 27 Storage 23 | . 23 Energy Gun 12 | . 12 Ballistic Gun 10 | . 10 Naked Turns . | . . Heaviest Build 17 | 11 17 Greatest Support 20 | 10 20 Greatest Overweight (x) 5 | 1 5 Average Overweight (x) . | . . Largest Inventory Capacity 8 | 8 8 Average Capacity 7 | 7 8 Most Carried 3 | 2 3 Average Carried 1 | 1 1 Final Capacity 8 | 8 8 Final Carried 2 | 2 1 Class Distribution -------------------- 100% | Mutant Dominant Class ---------------- Mutant | -10/Materials Resources | -11 -10 ----------- Run | Scr Mat Matter Collected 345 | 279 66 Remotely . | . . Salvage Created 168 | 58 110 Parts 10 | 1 9 Haulers Intercepted . | . . Recyclers Shooed . | . . Parts Field Recycled . | . . Retrieved Matter . | . . Parts Self-Destructed . | . . Prevented . | . . Kills | -11 -10 ------- Run | Scr Mat Combat Hostiles Destroyed 2 | . 2 Guns 2 | . 2 Classes Destroyed 3 | 1 2 Worker 1 | . 1 Recycler 1 | 1 . Grunt 2 | . 2 Best Kill Streak 2 | 1 2 Combat Bots Only 1 | . 1 Max Kills in Single Turn 1 | 1 1 Gunslinging . | . . Exploded . | . . Melee . | . . Uniques/NPCs Destroyed . | . . Combat | -11 -10 -------- Run | Scr Mat Damage Taken 1099 | . 1099 Core 261 | . 261 Absorbed by Shields . | . . Core Remaining (%) 100 | 100 . Volleys Fired 16 | 3 13 Largest 2 | 2 2 Hottest 60 | 60 60 Shots Fired 29 | 6 23 Gun 29 | 6 23 Cannon . | . . Launcher . | . . Special . | . . Kinetic 16 | 3 13 Thermal 13 | 3 10 Explosive . | . . Electromagnetic . | . . Robot Hit Streak 7 | 5 7 Robot Miss Streak 2 | . 2 Penetration Max . | . . Secondary Targets 1 | . 1 Max Gunslinging Chain 1 | . 1 Shots Hit Robots 22 | 5 17 Core Hits 10 | 2 8 Critical Kills . | . . Critical Parts Destroyed . | . . Critical Strikes . | . . Melee Attacks . | . . Impact . | . . Slashing . | . . Piercing . | . . Sneak Attacks . | . . Combat Hostiles . | . . Follow-up Attacks . | . . Damage Inflicted 229 | 56 173 Guns 229 | 56 173 Cannons . | . . Explosions . | . . Melee . | . . Ramming . | . . Kinetic 108 | 23 85 Thermal 121 | 33 88 Explosive . | . . Electromagnetic . | . . Impact . | . . Slashing . | . . Piercing . | . . Highest Corruption . | . . Average Corruption . | . . Corruption Purged . | . . Corruption Blocked . | . . Overload Shots . | . . Overflow Damage . | . . Projectiles . | . . Explosions . | . . Melee . | . . Knockbacks . | . . Impact . | . . Kinetic . | . . Secondary . | . . Self-Inflicted Damage . | . . Shots . | . . Rammed . | . . Targets Rammed . | . . Kicked . | . . Crushed . | . . Highest Temperature 110 | . 110 Average Temperature 49 | . 49 Received Heat Transfer 663 | . 663 Siege Activations . | . . Robots Corrupted . | . . Combat Hostiles . | . . Parts Fried . | . . Impact Corruptions . | . . Robots Melted . | . . Combat Hostiles . | . . Parts Melted . | . . Heat Transferred 275 | 75 200 Parts Sabotaged . | . . Parts Stolen . | . . Parts Stripped . | . . Power Chain Reactions . | . . Missiles Intercepted . | . . Alert | -11 -10 ------- Run | Scr Mat Peak Influence 30 | 5 30 Initial 3 | . 3 Average 7 | 2 10 Maximum Alert Level . | . . Low Security (%) 100 | 100 100 Level 1 . | . . Level 2 . | . . Level 3 . | . . Level 4 . | . . Level 5 . | . . High Security . | . . Max Security . | . . Squads Dispatched 1 | . 1 Investigation . | . . Extermination . | . . Reinforcement 1 | . 1 Assault . | . . Garrison . | . . Intercept . | . . Searches Triggered . | . . Construction Impeded . | . . Haulers Reinforced . | . . Active Scanning Responses . | . . Cargo Convoy Interrupts . | . . Stealth | -11 -10 --------- Run | Scr Mat Distress Signals . | . . Communications Jammed . | . . Distress Signals . | . . Times Spotted 8 | . 8 Peak Tracking Total 5 | . 5 Tactical Retreats . | . . Traps | -11 -10 ------- Run | Scr Mat Traps Triggered . | . . Indirectly . | . . Trap Hack Attempts . | . . Triggered . | . . Disarmed . | . . Reprogrammed . | . . Reused . | . . Traps Extracted . | . . Installed . | . . Triggered . | . . Machines | -11 -10 ---------- Run | Scr Mat Machines Disabled . | . . Max in Single Turn . | . . Machines Sabotaged . | . . Garrisons Compromised . | . . Overloaded Fab Kills . | . . Hacking | -11 -10 --------- Run | Scr Mat Machines Accessed 3 | . 3 Terminals 2 | . 2 Fabricators . | . . Repair Stations . | . . Recycling Units 1 | . 1 Scanalyzers . | . . Garrison Access . | . . Total Hacks 7 | . 7 Successful 4 | . 4 Failed 3 | . 3 Catastrophic 1 | . 1 Database Lockouts . | . . Manual 4 | . 4 Terminals 4 | . 4 Fabricators . | . . Repair Stations . | . . Recycling Units 3 | . 3 Scanalyzers . | . . Garrison Access . | . . Terminal Hacks 1 | . 1 Terminal Index 1 | . 1 Fabricator Hacks . | . . Repair Station Hacks . | . . Recycling Unit Hacks 3 | . 3 Process 1 | . 1 Report Inventory 1 | . 1 Retrieve Matter 1 | . 1 Scanalyzer . | . . Garrison Access Hacks . | . . Unauthorized Hacks . | . . Terminals . | . . Fabricators . | . . Repair Stations . | . . Recycling Units . | . . Scanalyzers . | . . Garrison Access . | . . Data Cores Recovered . | . . Used . | . . Hacking Detections 2 | . 2 Full Trace Events . | . . Feedback Events . | . . Feedback Blocked . | . . Robot Schematics Acquired . | . . Robots Built . | . . Authchips . | . . Time . | . . Total Robot Build Rating . | . . Part Schematics Acquired . | . . Parts Built . | . . Authchips . | . . Time . | . . Total Part Build Rating . | . . Parts Repaired . | . . Time . | . . Parts Recycled . | . . Recycled Matter 28 | . 28 Retrieved Matter 28 | . 28 Retrieved Components . | . . Parts Scanalyzed . | . . Part Schematics Acquired . | . . Parts Damaged . | . . Bothacking | -11 -10 ------------ Run | Scr Mat Used RIF Installer . | . . Robots Hacked . | . . Non-combat . | . . Combat . | . . Robot Hacks Applied . | . . Relay Couplers Released . | . . Fabnet Peak Effective % . | . . Robots Rewired . | . . Allies Hacked . | . . Hacks Repelled . | . . Allies | -11 -10 -------- Run | Scr Mat Total Allies . | . . Largest Group . | . . Highest-Rated Group . | . . Highest-Rated Ally . | . . Total Orders . | . . Ally Attacks . | . . Total Damage . | . . Kills . | . . Allies Corrupted . | . . Allies Melted . | . . Intel | -11 -10 ------- Run | Scr Mat Robot Analysis Total . | . . Derelict Logs Recovered . | . . Drone Launches . | . . Drone Recoveries . | . . Exploration | -11 -10 ------------- Run | Scr Mat Turns Passed 345 | 116 229 Spaces Moved 222 | 73 149 Core 3 | 2 1 Treads . | . . Legs 202 | 54 148 Wheels 17 | 17 . Hover . | . . Flight . | . . Fastest Speed 50 | 50 120 Average Speed 125 | 129 123 Slowest Speed 300 | 190 300 Overloaded Moves . | . . Propulsion Burnouts . | . . Robots Hopped . | . . Cave-ins Triggered . | . . Exploration Rate (%) 14 | 3 26 Regions Visited 1 Branch Regions . Pre-discovered Areas . | . . Known Exits Taken . | . . Unknown Exits Taken 1 | 1 . Scrap Searched . | . . Spaces Dug . | . . Terrain Destroyed . | . . Melee . | . . Projectile . | . . AOE . | . . Terrain Rammed . | . . Walls Destroyed . | . . Machines Disabled . | . . Actions | -11 -10 --------- Run | Scr Mat Total 258 | 85 173 Wait . | . . Move 221 | 72 149 Hop . | . . Pick Up 4 | 2 2 Fast Attach 11 | 7 4 Attach 4 | . 4 Detach 1 | . 1 Swap . | . . Drop 1 | 1 . Fire 16 | 3 13 Melee . | . . Ram . | . . Kick . | . . Crush . | . . Escape Stasis . | . . Rewire . | . . Trap . | . . Miscellaneous . | . . Route ------- -11/Scrapyard -10/Materials (discovered 1 exit: [*Min]) History --------- Turn | Location | Event 12 | -11/Scrapyard | Discovered new exit (range 16) 117 | -11/Scrapyard | Entered Materials 282 | -10/Materials | Core integrity fell below 50% 289 | -10/Materials | Discovered new exit (range 16) 291 | -10/Materials | Core integrity fell below 20% 306 | -10/Materials | Build established: Mutant 320 | -10/Materials | Lost 6 parts (2p2n2w) 346 | -10/Materials | Destroyed by G-47 Trooper with Particle Gun Last Messages --------------- 00270_ K-01 Serf collects debris. 00270_ Acquired 20 matter. 00272_ K-01 Serf collects debris. 00272_ Acquired Ion Engine. 00275_ K-01 Serf collects debris. 00279_ Ion Engine destroyed. 00280_ Sml. Laser destroyed. 00282_ K-01 Serf collects debris. 00286_ G-47 Trooper destroyed. 00286_ K-01 Serf collects debris. 00287_ R-06 Scavenger collects Aluminum Leg. 00289_ Acquired 13 matter. 00289_ EXIT=FOUND 00289_ K-01 Serf collects debris. 00289_ Lgt. Assault Rifle destroyed. 00293_ K-01 Serf collects debris. 00306_ Acquired EM Pulse Gun. 00312_ Acquired 10 matter. 00336_ Lgt. Ion Engine destroyed. 00340_ Aluminum Leg destroyed. Map ----- +----------------------------------------------------+ | ????????????????????????????????## """ #?? | | ???????????????????????##########T #?? | | ???????????????????????# ## #?? | | ???????????????????????# % ## #?? | | ???????????????????????# ## #######+###?? | | ???????????????????????# """ ## #????# ??? | | ?????????????????#?????# """ ## #????# ? | | ?????????????????# ????# """ ## #????# " # | | ?????????????????# ???# """ ## #????# """ # | | ?????????????????# ???# ## #????# """ # | | ?????????#######?# ??# ## #????# """ # | | ?????????# # ###+######### ###### ""?# | | ???????? !% % # ""??? | | ???????? < % # "???? | | ???????? ggg # "???? | | ?????????# ###### ############### ????? | | ?????????# "!"|???????# u#?????????????# ????? | | ??????????????????????# #??????????????##????? | | ??????????????????????# #????????????????????? | | ??????????????????????#k #????????????????????? | | ??????????????????????# w ##+####+###??????????? | | ??????????????????????# k #??????????? | | ??????????????????????+ +??????????? | | ??????????????????????# #??????????? | | ??????????????????????# ######??????????? | | ??????????????????????# @ #???????????????? | | ??????????????????????# #???????????????? | | ??????????????????????# [ == #???????????????? | | ????????????????????? == ????????????? | | ???????????????????? #### ######???????????? | | ???????????????????t #???+#????????????????? | | ??????????????????" """ #?????????????????????? | | ?????????????????""""""" #?????????????????????? | | ???????????????? """"" #?????????????????????? | | ???????????????? ???o #?????????????????????? | | ?????????????????????? ?????????????????????? | | ?????????????????????? ?????????????????????? | | ????????????????????? ?????????????????????? | | ??????????????????????#####+?????????????????????? | | ?????????????????????????????????????????????????? | | ?????????????????????????????????????????????????? | | ?????????????????????????????????????????????????? | | ?????????????????????????????????????????????????? | | ?????????????????????????????????????????????????? | | ?????????????????????????????????????????????????? | | ?????????????????????????????????????????????????? | | ?????????????????????????????????????????????????? | | ?????????????????????????????????????????????????? | | ?????????????????????????????????????????????????? | | ?????????????????????????????????????????????????? | +----------------------------------------------------+ Best States ------------- Heat Dissipation 25 Energy Generation 10 Energy Capacity 250 Matter Stores 300 Matter Capacity 300 Sight Range 16 Terrain Scan Density 10 Evasion (%) 55 Item Schematics ----------------- None Robot Schematics ------------------ None Fabricated ------------ Nothing Alien Tech Used ----------------- None Achievements -------------- None Challenges ------------ None Game ------ Seed GuidedCannonActivator Manual? 0 Play Time 00:07:31 Cumulative 7.8 hours Start 2022.07.02 @ 09:07:02 End 2022.07.02 @ 09:13:10 Sessions 1 Manual Loads 0 Difficulty Rogue Special Mode None Game No. 9 Rogue 8 Adventurer 0 Explorer 1 Win Type - Total 0 Types 0/0/0/0/0/0/0/0/0 Lore% 0 Gallery% 8 Achievement% 8 Wizard Run 0 Options --------- ASCII 0 Keyboard 0 Movement Mouse Keybinds 0 Fullscreen 1 Font 18/X11 Map View 76x50 Tactical HUD 1 Map Filters NONE Filters NONE Steam 1 RUN: f3346045-3e5b-45e4-b269-21673cabf18b